lending/lending_fUSD_20240124
["ID","MTS","AMOUNT","RATE_DAILY","PERIOD"]
[312620432,1706100665535,-150.0,0.00051,30]
[312620433,1706100665546,-2000.0,0.00051,2]
[312620434,1706100665556,-381.38483893,0.00051,5]
[312620435,1706100665567,-4799.66698014,0.00051,4]
[312620436,1706100665578,-349.70534473,0.00051,15]
[312620437,1706100665590,-1194.15,0.00051,14]
[312620438,1706100665602,-88005.19834041,0.00051,4]
[312620439,1706100665613,-5577978.05070714,0.00051,30]
[312620440,1706100665626,-3000.0,0.00051,30]
[312620441,1706100665637,-3000.0,0.00051,30]
[312620442,1706100665648,-3000.0,0.00051,30]
[312620443,1706100665658,-3000.0,0.00051,30]
[312620444,1706100665669,-3013.4,0.00051,30]
[312620445,1706100665679,-130999.49065162,0.00051,120]
[312620446,1706100666570,-7438.87750432,0.00051,120]
[312620447,1706100667514,-666.05570707,0.0003759,7]
[312620448,1706100668082,-312.43555506,0.0003759,7]
[312620449,1706100668095,-817.4908295,0.0003759,7]
[312620450,1706100668108,-51.66190837,0.0003759,7]
[312620451,1706100668118,-790.43553341,0.00039127,30]
[312620452,1706100668128,-127.66901905,0.00039512,2]
[312620453,1706100668140,-500.0,0.00039512,2]
[312620454,1706100668168,-12259.58685957,0.00039512,2]
[312620455,1706100668177,-4294.09444492,0.0005,4]
[312620456,1706100668187,-94937.74162518,0.00051,120]
[312620457,1706100668199,-292.55581077,0.00051,120]
[312620458,1706100668213,-1377.50795945,0.00051,120]
[312620459,1706100668225,-1579.02515409,0.00051,120]
[312620460,1706100668268,-717.24839731,0.00051,120]
[312620461,1706100668280,-313.10995,0.00051,120]
[312620462,1706100668299,-446.53762245,0.00036359,2]
[312620463,1706100668311,-501.74237755,0.00036359,2]
[312620464,1706100668320,-69.88760826,0.00051,120]
[312620465,1706100668337,-1926.40815343,0.00051,120]
[312620466,1706100668942,-172.0,0.00037498,5]
[312620467,1706100668957,-134.99777955,0.00037499,2]
[312620468,1706100668969,-360.54469913,0.00037499,2]
[312620469,1706100669268,-15972.6331092,0.00037499,2]
[312620470,1706100669285,-151.27,0.0005,2]
[312620471,1706100669295,-151.27,0.0005,2]
[312620472,1706100669305,-151.27,0.0005,2]
[312620473,1706100669315,-151.27,0.0005,2]
[312620474,1706100669325,-151.27,0.0005,2]
[312620475,1706100669335,-151.27,0.0005,2]
[312620476,1706100669346,-151.27,0.0005,2]
[312620477,1706100669357,-3942.73536508,0.00051,120]
[312620478,1706100669369,-12847.65519299,0.00051,120]
[312620479,1706100669386,-1052.8495497,0.00051,120]
[312620480,1706100669418,-9830.74471665,0.00051,120]
[312620481,1706100713641,50321.41021733,0.00021689,2]
[312620483,1706100848766,7077.04625164,0.0002,2]
[312620490,1706100927015,3191.74123019,0.00022078,2]
[312620514,1706101545063,252.07576359,0.00020457,2]
[312620556,1706101832173,-174.49949303,0.00022895,2]
[312620557,1706101832182,-90.73350697,0.00022896,2]
[312620558,1706101832193,-64.26649303,0.00022896,2]
[312620559,1706101832202,-434.7882237,0.00022897,2]
[312620560,1706101832214,-89.83267418,0.00022897,2]
[312620561,1706101832223,-438.73790694,0.000229,2]
[312620562,1706101832235,-4497.5801161,0.000229,2]
[312620563,1706101832246,-607.87823177,0.000229,2]
[312620564,1706101832257,-280.56667432,0.000229,2]
[312620565,1706101832269,-4102.37787087,0.000229,2]
[312620566,1706101832278,-896.57742518,0.00022979,2]
[312620567,1706101832287,-165.29991769,0.00022986,2]
[312620568,1706101832297,-6880.58218625,0.00022987,2]
[312620582,1706101833387,-384.86813329,0.00022987,2]
[312620584,1706101833400,-303.77486671,0.00022987,2]
[312620586,1706101833411,-700.0,0.00022987,2]
[312620589,1706101833422,-40460.00271289,0.00022987,2]
[312620591,1706101833431,-404.2824,0.00022988,2]
[312620592,1706101833441,-8688.17633727,0.00022988,2]
[312620593,1706101833450,-21539.73930754,0.00022989,2]
[312620594,1706101834286,-1971.44374651,0.00022989,2]
[312620595,1706101834298,-268.53230856,0.00022989,2]
[312620596,1706101834342,-6035.59806615,0.00022989,2]
[312620597,1706101834356,-356.086127,0.00022989,2]
[312620627,1706101838132,-303.87246143,0.00022989,2]
[312620628,1706101838155,-401.08,0.00022989,2]
[312620629,1706101838234,-1386.95357079,0.00022989,2]
[312620630,1706101838253,-736.58151475,0.00022989,2]
[312620631,1706101838473,-8030.00000001,0.00022989,2]
[312620643,1706101838600,-1226.55676392,0.00022989,2]
[312620645,1706101838610,-304.20615048,0.00022998,2]
[312620647,1706101838619,-2447.43377176,0.00022998,2]
[312620649,1706101838628,-16763.88062595,0.00022998,2]
[312620651,1706101838637,-400.0,0.00022999,2]
[312620653,1706101838647,-2046.69606993,0.00022999,2]
[312620655,1706101838656,-5697.44,0.00022999,2]
[312620657,1706101838665,-51662.47701556,0.00023,2]
[312620659,1706101838677,-2074.14907395,0.00023,2]
[312620721,1706101840654,-2095.6440031,0.00023,2]
[312620722,1706101840666,-1135.91179,0.00023,2]
[312620723,1706101841161,-1258.4088332,0.00023,2]
[312620724,1706101841221,-2925.12003012,0.00023,2]
[312620725,1706101841281,-660.00660538,0.00023,2]
[312620726,1706101841293,-503.4787228,0.00023,2]
[312620727,1706101841304,-2726.59393187,0.00023,2]
[312620728,1706101841316,-100234.67752094,0.00023,2]
[312620729,1706101841385,-301.68080476,0.00023,2]
[312620739,1706101843343,-2004.971,0.00023,2]
[312620741,1706101846499,-668.49363745,0.00022999,2]
[312620742,1706101846508,-200.03515425,0.00022999,2]
[312620743,1706101846557,-33.00891197,0.00022999,2]
[312620744,1706101846566,-526.14108803,0.00023,2]
[312620745,1706101846578,-261549.0458668,0.00023,2]
[312620746,1706101846616,-566.28970534,0.00023,2]
[312620747,1706101846758,-293.25246953,0.00023,2]
[312620748,1706101846770,-16554.08898339,0.00023,2]
[312620749,1706101846780,-254.84753281,0.000249,2]
[312620750,1706101846789,-175.3006162,0.00025,2]
[312620751,1706101846798,-283.9901783,0.00025,2]
[312620752,1706101846807,-1000.0,0.00025918,2]
[312620753,1706101846816,-500.0,0.00026,2]
[312620754,1706101846826,-3000.0,0.00026,2]
[312620755,1706101846835,-1116.25,0.00026591,2]
[312620756,1706101846845,-5725.8,0.00026591,2]
[312620757,1706101846855,-400.57,0.00027367,2]
[312620758,1706101846866,-158.35484109,0.0002739,2]
[312620759,1706101846875,-150.23,0.00027397,2]
[312620760,1706101846885,-150.23,0.00027397,2]
[312620761,1706101846894,-579.72,0.000274,2]
[312620763,1706101846904,-579.72,0.000274,2]
[312620765,1706101846914,-150.23,0.00027819,2]
[312620767,1706101846923,-1323.31526319,0.00027896,2]
[312620806,1706101847222,-1075.51285473,0.00027896,2]
[312621063,1706102913904,-155.38851439,0.00039933,2]
[312621064,1706102913925,-20.62580571,0.00039933,2]
[312621065,1706102917386,-170.62580571,0.00039933,2]
[312621066,1706102921841,-155.38851439,0.00039933,2]
[312621067,1706102923959,-170.62580571,0.00039933,2]
[312621068,1706102926031,-155.38851439,0.00039933,2]
[312621069,1706102929874,-170.62580571,0.00039933,2]
[312621070,1706102932021,-155.38851439,0.00039933,2]
[312621071,1706102933751,-170.62580571,0.00039933,2]
[312621072,1706102936212,-155.38851439,0.00039933,2]
[312621073,1706102937772,-170.62580571,0.00039933,2]
[312621077,1706103033352,-425.98800911,0.00024999,2]
[312621078,1706103033394,-302.6740637,0.00024999,2]
[312621079,1706103033406,-213.51837668,0.00024999,2]
[312621080,1706103033415,-350.82994316,0.00025,3]
[312621081,1706103033433,-99.17005684,0.00025,3]
[312621082,1706103033442,-380.54,0.00025788,2]
[312621083,1706103033452,-252.29725849,0.00026,2]
[312621084,1706103033467,-247.70274151,0.00026,2]
[312621085,1706103033476,-335.06395639,0.00027,3]
[312621086,1706103033507,-164.93604361,0.00027,3]
[312621087,1706103033516,-150.00000001,0.0002759,2]
[312621088,1706103033525,-225.16,0.00027625,2]
[312621089,1706103033534,-150.0,0.0002766,2]
[312621090,1706103033543,-17834.12,0.00027661,2]
[312621091,1706103033552,-250.0,0.0002767,2]
[312621092,1706103033561,-800.0,0.00027684,2]
[312621093,1706103033570,-3844.3,0.00027718,2]
[312621094,1706103033579,-299.99,0.00027718,12]
[312621095,1706103033588,-406.7,0.00027734,2]
[312621096,1706103033597,-2037.39,0.00027803,2]
[312621097,1706103033607,-11699.20853897,0.00027892,2]
[312621098,1706103033638,-401.94228,0.00027892,2]
[312621099,1706103033661,-501.9,0.00027892,2]
[312621100,1706103033674,-1316.20749776,0.00027892,2]
[312621101,1706103033685,-3236.45249168,0.00027892,2]
[312621102,1706103033696,-3075.31367913,0.00027892,2]
[312621115,1706103038395,-574.2,0.0002767,2]
[312621116,1706103038404,-8046.74927026,0.00027892,2]
[312621117,1706103038413,-14848.1279331,0.00027892,2]
[312621118,1706103038422,-8965.9684758,0.00027892,2]
[312621119,1706103038431,-155.90140271,0.00027894,2]
[312621120,1706103038440,-177.21873968,0.00027896,2]
[312621121,1706103038449,-3217.17702554,0.00027896,7]
[312621122,1706103038458,-8343.09071046,0.00027896,2]
[312621123,1706103038467,-380.54,0.00028052,2]
[312621124,1706103038475,-150.23,0.00028082,2]
[312621125,1706103038485,-200.0,0.00028085,2]
[312621126,1706103038494,-150.23,0.0002824,2]
[312621127,1706103038503,-1417.66,0.00028307,2]
[312621128,1706103038512,-150.23,0.00028662,2]
[312621129,1706103038523,-150.23,0.00028767,2]
[312621130,1706103038532,-150.06,0.00028797,2]
[312621131,1706103038541,-2801.99429503,0.00028798,2]
[312621132,1706103038550,-150.23,0.00029083,2]
[312621133,1706103038561,-225.16,0.00029269,2]
[312621134,1706103038571,-3305.0,0.000293,3]
[312621135,1706103038581,-10269.0,0.000293,3]
[312621136,1706103038590,-150.23,0.00029452,2]
[312621137,1706103038599,-534.63009096,0.0002995,2]
[312621138,1706103038608,-398.84,0.0002999,2]
[312621139,1706103038617,-177.97979913,0.00029999,6]
[312621140,1706103038627,-3048.13565396,0.00029999,5]
[312621142,1706103038636,-52281.3923727,0.00029999,2]
[312621144,1706103038645,-9639.56910486,0.0003,2]
[312621146,1706103038655,-96927.23371014,0.0003,4]
[312621148,1706103038664,-694.3172095,0.0003,2]
[312621150,1706103038673,-2500.0,0.0003,2]
[312621152,1706103038682,-155.0,0.0003,2]
[312621154,1706103038691,-3000.0,0.0003,2]
[312621156,1706103038700,-150.23,0.00030137,2]
[312621158,1706103038709,-380.54,0.00030316,2]
[312621160,1706103038718,-154.28,0.00030444,2]
[312621162,1706103038727,-150.23,0.00030822,2]
[312621164,1706103038737,-225.16,0.00030913,2]
[312621166,1706103038745,-3000.0,0.00031,2]
[312621168,1706103038754,-800.0,0.00031145,2]
[312621170,1706103038763,-150.23,0.00031507,2]
[312621171,1706103038773,-200.0,0.00031595,2]
[312621172,1706103038783,-180.0,0.00031644,2]
[312621173,1706103038792,-150.23,0.00032192,2]
[312621174,1706103038801,-154.28,0.00032289,2]
[312621175,1706103038811,-789.90050421,0.00032556,14]
[312621176,1706103038820,-225.16,0.00032556,2]
[312621177,1706103038829,-380.54,0.0003258,2]
[312621178,1706103038838,-158.70814561,0.000327,2]
[312621179,1706103038848,-150.23,0.00032877,2]
[312621180,1706103038858,-364.59,0.00032877,15]
[312621181,1706103038867,-714.36,0.000335,2]
[312621182,1706103038877,-714.36,0.000335,2]
[312621183,1706103038886,-714.36,0.000335,2]
[312621184,1706103038896,-714.36,0.000335,2]
[312621185,1706103038905,-714.36,0.000335,2]
[312621186,1706103038915,-714.36,0.000335,2]
[312621187,1706103038925,-714.36,0.000335,2]
[312621188,1706103038934,-714.36,0.000335,2]
[312621189,1706103038943,-714.36,0.000335,2]
[312621190,1706103038953,-714.36,0.000335,2]
[312621191,1706103038962,-714.36,0.000335,2]
[312621192,1706103038971,-714.36,0.000335,2]
[312621193,1706103038981,-714.36,0.000335,2]
[312621194,1706103038990,-714.36,0.000335,2]
[312621195,1706103038999,-714.36,0.000335,2]
[312621196,1706103039009,-714.36,0.000335,2]
[312621197,1706103039017,-714.36,0.000335,2]
[312621198,1706103039028,-714.36,0.000335,2]
[312621199,1706103039037,-714.36,0.000335,2]
[312621200,1706103039048,-714.36,0.000335,2]
[312621201,1706103039058,-623.55776645,0.00033605,4]
[312621202,1706103039070,-2490.97927769,0.00033605,4]
[312621203,1706103039082,-20785.989,0.00033605,4]
[312621204,1706103039150,-592.08019123,0.00033605,4]
[312621205,1706103039169,-3021.21579466,0.00033605,4]
[312621206,1706103039233,-400.16,0.00033605,4]
[312621210,1706103040785,-1901.39447196,0.00033605,4]
[312621211,1706103040796,-3764.80170969,0.00033605,4]
[312621212,1706103040808,-4137.62569752,0.00033605,4]
[312621213,1706103040817,-476.788,0.00033615,2]
[312621214,1706103040826,-319.0,0.00033615,2]
[312621215,1706103040837,-209.0,0.00033615,2]
[312621216,1706103040846,-10286.6737934,0.0003399,5]
[312621217,1706103040855,-6015.045173,0.00034,2]
[312621218,1706103041397,-2923.62999489,0.00034,2]
[312621219,1706103041411,-114.69045978,0.00034,2]
[312621220,1706103041421,-839.15800027,0.00034,4]
[312621221,1706103041434,-160.84199973,0.00034,4]
[312621222,1706103041444,-154.28,0.00034134,2]
[312621223,1706103041454,-225.16,0.000342,2]
[312621224,1706103041464,-429.5356729,0.00034251,5]
[312621225,1706103041477,-656.6484,0.00034251,5]
[312621226,1706103041490,-5771.59845604,0.00034251,5]
[312621227,1706103041500,-1303.259152,0.00034261,2]
[312621228,1706103041509,-153.970797,0.00034261,2]
[312621229,1706103041521,-173.19742,0.00034261,2]
[312621230,1706103041531,-3842.369014,0.00034261,2]
[312621231,1706103041540,-483.005558,0.00034261,2]
[312621232,1706103041549,-176.509549,0.00034261,2]
[312621233,1706103041558,-1280.789671,0.00034261,2]
[312621234,1706103041567,-161.001853,0.00034261,2]
[312621235,1706103041576,-207.645195,0.00034261,2]
[312621236,1706103041587,-186.281654,0.00034261,2]
[312621237,1706103041597,-3428.89126447,0.0003451,6]
[312621238,1706103041609,-379.807029,0.0003452,2]
[312621239,1706103041620,-1139.421088,0.0003452,2]
[312621240,1706103041630,-150.06,0.00034557,2]
[312621241,1706103041640,-800.0,0.00034606,2]
[312621242,1706103041649,-3124.18599565,0.0003468,6]
[312621243,1706103041664,-1041.48721233,0.0003468,6]
[312621244,1706103041689,-442.30881333,0.0003468,6]
[312621245,1706103041701,-541.81128416,0.0003468,6]
[312621246,1706103041757,-314.999999,0.0003468,6]
[312621247,1706103041932,-1392.98922447,0.0003468,6]
[312621248,1706103041941,-153.970797,0.0003469,2]
[312621249,1706103041951,-257.73997853,0.0003469,2]
[312621289,1706103043334,-1045.51917347,0.0003469,2]
[312621291,1706103043343,-3842.369014,0.0003469,2]
[312621294,1706103043352,-483.005558,0.0003469,2]
[312621296,1706103043361,-1280.789671,0.0003469,2]
[312621299,1706103043370,-161.001853,0.0003469,2]
[312621303,1706103043379,-207.645195,0.0003469,2]
[312621306,1706103043388,-569.710544,0.00034794,2]
[312621309,1706103043397,-1709.131632,0.00034794,2]
[312621310,1706103043408,-398.84,0.00034808,2]
[312621312,1706103043417,-1141.98735953,0.00034818,2]
[312621330,1706103043570,-6968.01264047,0.00034818,2]
[312621331,1706103043579,-5588.0,0.00034818,2]
[312621332,1706103043588,-4182.0,0.00034818,2]
[312621333,1706103043597,-19732.0,0.00034818,2]
[312621334,1706103043606,-2276.0,0.00034818,2]
[312621336,1706103043615,-7365.0,0.00034818,2]
[312621338,1706103043625,-2904.0,0.00034818,2]
[312621340,1706103043647,-835.0,0.00034818,2]
[312621342,1706103043671,-1031.0,0.00034818,2]
[312621344,1706103043693,-1235.0,0.00034818,2]
[312621346,1706103043715,-1255.0,0.00034818,2]
[312621348,1706103043735,-1934.0,0.00034818,2]
[312621350,1706103043759,-380.54,0.00034844,2]
[312621352,1706103043773,-305.20834874,0.00034921,14]
[312621354,1706103043782,-3428.89126447,0.00034921,6]
[312621355,1706103043791,-759.614058,0.00034931,2]
[312621357,1706103043800,-2278.842176,0.00034931,2]
[312621359,1706103043809,-530.025274,0.00034968,2]
[312621361,1706103043819,-24002.2388513,0.0003499,7]
[312621363,1706103043829,-155.0,0.00035,2]
[312621365,1706103043838,-16468.17558788,0.00035,2]
[312621367,1706103043847,-1486.08195237,0.00035,2]
[312621369,1706103043856,-1104.38138923,0.00035,14]
[312621371,1706103043866,-1271.78829708,0.00035,4]
[312621373,1706103043875,-3000.0,0.00035,2]
[312621375,1706103043885,-3428.89126447,0.00035058,7]
[312621378,1706103043894,-949.517573,0.00035068,2]
[312621379,1706103043903,-32.55725885,0.00035068,2]
[312621383,1706103043926,-2815.99546115,0.00035068,2]
[312621385,1706103043936,-200.0,0.00035106,2]
[312621387,1706103043945,-2620.90794213,0.00035108,7]
[312621389,1706103043957,-4236.87458681,0.00035108,7]
[312621391,1706103043967,-19.12594352,0.00035118,2]
[312621394,1706103043985,-157.38360548,0.00035118,2]
[312621396,1706103043995,-186.281654,0.00035118,2]
[312621399,1706103044006,-74.53626547,0.00035118,2]
[312621401,1706103044017,-613.09825755,0.00035118,2]
[312621403,1706103044030,-371.88983172,0.00035118,2]
[312621405,1706103044042,-243.73479726,0.00035118,2]
[312621407,1706103044051,-153.970797,0.00035118,2]
[312621409,1706103044060,-2374.22217457,0.00035118,2]
[312621413,1706103044088,-277.059999,0.00035118,2]
[312621417,1706103044109,-1191.08684043,0.00035118,2]
[312621419,1706103044118,-483.005558,0.00035118,2]
[312621420,1706103044127,-250.98932895,0.00035118,2]
[312621421,1706103044138,-1029.80034205,0.00035118,2]
[312621422,1706103044148,-161.001853,0.00035118,2]
[312621423,1706103044157,-207.645195,0.00035118,2]
[312621424,1706103044167,-6857.78252894,0.00035332,7]
[312621425,1706103044176,-1329.324602,0.00035342,2]
[312621426,1706103044184,-1161.96124123,0.00035342,2]
[312621427,1706103044196,-2826.01256677,0.00035342,2]
[312621428,1706103044207,-6857.78252894,0.00035536,7]
[312621429,1706103044219,-1303.259152,0.00035546,2]
[312621430,1706103044229,-153.970797,0.00035546,2]
[312621431,1706103044238,-3842.369014,0.00035546,2]
[312621432,1706103044247,-483.005558,0.00035546,2]
[312621433,1706103044258,-1280.789671,0.00035546,2]
[312621434,1706103044267,-161.001853,0.00035546,2]
[312621435,1706103044277,-207.645195,0.00035546,2]
[312621436,1706103044287,-1807.04590702,0.00035622,4]
[312621437,1706103044296,-260.49311343,0.0003569,8]
[312621438,1706103044305,-274.31610154,0.0003569,8]
[312621439,1706103044314,-559.26517999,0.0003569,8]
[312621440,1706103044324,-315.70807671,0.0003569,8]
[312621441,1706103044335,-157.55105728,0.0003569,8]
[312621442,1706103044346,-225.16,0.00035844,2]
[312621443,1706103044356,-3428.89126447,0.0003589,8]
[312621444,1706103044366,-1490.0,0.000359,12]
[312621445,1706103044375,-225.0,0.0003591,5]
[312621446,1706103044384,-151.07943206,0.0003591,5]
[312621447,1706103044393,-3777.61489577,0.00035954,8]
[312621448,1706103044444,-1008.52847505,0.00035954,8]
[312621449,1706103044457,-1055.23642804,0.00035954,8]
[312621450,1706103044469,-730.73176795,0.00035954,8]
[312621451,1706103044481,-285.67096213,0.00035954,8]
[312621452,1706103044493,-714.32903787,0.00035964,8]
[312621459,1706103047593,-6143.45349107,0.00035964,8]
[312621460,1706103047604,-173.19742,0.00035974,2]
[312621461,1706103047613,-176.509549,0.00035974,2]
[312621462,1706103047624,-186.281654,0.00035974,2]
[312621463,1706103047634,-1303.259152,0.00035974,2]
[312621464,1706103047645,-153.970797,0.00035974,2]
[312621465,1706103047656,-3842.369014,0.00035974,2]
[312621466,1706103047666,-483.005558,0.00035974,2]
[312621467,1706103047677,-1280.789671,0.00035974,2]
[312621468,1706103047686,-161.001853,0.00035974,2]
[312621469,1706103047695,-207.645195,0.00035974,2]
[312621470,1706103047704,-154.28,0.00035979,2]
[312621471,1706103047715,-3428.89126447,0.00036085,8]
[312621472,1706103047724,-150.48752176,0.00036397,2]
[312621473,1706103047734,-158.35484109,0.00036574,2]
[312621474,1706103047744,-7674.14547944,0.00036585,9]
[312621475,1706103047757,-9470.31084296,0.00036585,9]
[312621476,1706103047766,-3428.89126447,0.00036594,9]
[312621477,1706103047776,-3428.89126447,0.00036605,9]
[312621478,1706103047787,-364.59,0.00036613,15]
[312621479,1706103047796,-209.0,0.00036615,2]
[312621480,1706103047806,-300.0,0.000369,13]
[312621481,1706103047815,-398.84,0.0003699,2]
[312621482,1706103047825,-100000.0,0.00037,17]
[312621483,1706103047834,-700.0,0.00037,2]
[312621484,1706103047843,-155.0,0.00037,2]
[312621485,1706103047853,-380.54,0.00037108,2]
[312621486,1706103047863,-1317.33400793,0.00037484,2]
[312621487,1706103047872,-3158.50555833,0.00037699,2]
[312621488,1706103047917,-296.30780668,0.00037699,2]
[312621489,1706103047929,-11892.91388957,0.00037699,2]
[312621490,1706103080278,697.34,0.000224,2]
[312621532,1706103968708,239.36002729,0.000224,2]
[312621564,1706104232867,-6133.05125079,0.00022999,2]
[312621565,1706104232876,-172.06,0.00023,2]
[312621566,1706104232886,-500.0,0.00026,2]
[312621567,1706104232896,-155.0,0.0003,2]
[312621568,1706104232908,-277.7,0.00030694,2]
[312621569,1706104232918,-831.2512208,0.00032612,2]
[312621582,1706104233026,-350.1287792,0.00032612,2]
[312621584,1706104233037,-1620.0,0.00032612,2]
[312621585,1706104233046,-250.0,0.00032612,2]
[312621586,1706104233054,-667.2190338,0.00032612,2]
[312621612,1706104237616,-12.7809662,0.00032612,2]
[312621613,1706104237626,-3203.58,0.00032612,2]
[312621614,1706104237635,-1000.0,0.000329,2]
[312621615,1706104237644,-277.7,0.00032958,2]
[312621616,1706104237654,-523.77969826,0.000338,2]
[312621617,1706104237669,-47.78030174,0.000338,2]
[312621618,1706104237680,-571.56,0.000338,2]
[312621619,1706104237689,-571.56,0.000338,2]
[312621620,1706104237699,-571.56,0.000338,2]
[312621621,1706104237708,-571.56,0.000338,2]
[312621622,1706104237718,-571.56,0.000338,2]
[312621623,1706104237727,-571.56,0.000338,2]
[312621624,1706104237736,-571.56,0.000338,2]
[312621625,1706104237746,-571.56,0.000338,2]
[312621636,1706104237993,-571.56,0.000338,2]
[312621638,1706104238003,-571.56,0.000338,2]
[312621639,1706104238013,-571.56,0.000338,2]
[312621641,1706104238023,-571.56,0.000338,2]
[312621643,1706104238033,-408.57136738,0.000338,2]
[312621645,1706104238045,-162.98863262,0.000338,2]
[312621647,1706104238054,-411.05967125,0.000338,2]
[312621649,1706104238070,-160.50032875,0.000338,2]
[312621651,1706104238080,-571.56,0.000338,2]
[312621652,1706104238089,-571.56,0.000338,2]
[312621654,1706104238098,-571.56,0.000338,2]
[312621656,1706104238108,-571.56,0.000338,2]
[312621658,1706104238117,-571.56,0.000338,2]
[312621659,1706104238127,-1000.0,0.0003416,4]
[312621661,1706104238136,-201.205511,0.00034261,2]
[312621663,1706104238145,-213.321368,0.00034261,2]
[312621664,1706104238154,-186.048241,0.00034261,2]
[312621666,1706104238163,-203.35,0.000344,2]
[312621668,1706104238173,-222.81618967,0.0003452,2]
[312621670,1706104238185,-1219.29411833,0.0003452,2]
[312621672,1706104238194,-303.82,0.00034537,15]
[312621674,1706104238203,-2163.165463,0.00034794,2]
[312621675,1706104238212,-2884.220617,0.00034931,2]
[312621677,1706104238221,-534.6301,0.00034967,2]
[312621679,1706104238231,-320.0,0.00034991,2]
[312621681,1706104238240,-2500.0,0.00035066,2]
[312621683,1706104238249,-10669.33538248,0.00035067,2]
[312621684,1706104238291,-1578.3,0.00035067,2]
[312621687,1706104240804,-4001.5,0.00035067,2]
[312621698,1706104240934,-219.0402054,0.00035067,2]
[312621700,1706104240943,-790.32541139,0.00035068,2]
[312621704,1706104240971,-802.25,0.00035068,2]
[312621761,1706104242618,-2012.70035961,0.00035068,2]
[312621762,1706104242630,-150.0,0.0003508,7]
[312621763,1706104242641,-277.7,0.00035222,2]
[312621764,1706104242650,-526.17584723,0.00035242,2]
[312621765,1706104242870,-1000.0,0.00035242,2]
[312621767,1706104243212,-675.86748,0.00035242,2]
[312621796,1706104245624,-993.30997277,0.00035242,2]
[312621798,1706104245634,-5047.38608,0.00035342,2]
[312621800,1706104245644,-1000.0,0.000356,2]
[312621802,1706104245654,-178.86771962,0.0003569,8]
[312621804,1706104245664,-224.44044671,0.0003569,8]
[312621805,1706104245674,-284.13726903,0.0003569,8]
[312621806,1706104245684,-257.81082101,0.0003569,8]
[312621807,1706104245694,-205.75443951,0.00036,3]
[312621809,1706104245704,-1233.0,0.00036288,2]
[312621811,1706104245714,-1251.0,0.00036288,2]
[312621813,1706104245724,-209.0,0.00036288,2]
[312621815,1706104245733,-1114.27925135,0.00036288,2]
[312621821,1706104245822,-257.16189104,0.00036288,2]
[312621847,1706104365570,9127.27126603,0.00021849,7]
[312621853,1706104427813,546.16322699,0.00021849,7]
[312621855,1706104441795,546.16322699,0.00021849,7]
[312621860,1706104461767,546.16322699,0.00021849,7]
[312621862,1706104479778,577.81203804,0.00021849,7]
[312621866,1706104509259,4639.8403,0.000229,2]
[312621867,1706104512888,467.67250831,0.00021849,2]
[312621870,1706104529259,630.3066843,0.00022078,2]
[312621878,1706104670528,403.79343005,0.000229,2]
[312621886,1706104797269,3620.9655,0.00022899,2]
[312621887,1706104797738,666.97354782,0.000229,2]
[312621888,1706104802617,1228.53056958,0.00020697,2]
[312621889,1706104803268,500.0,0.000229,2]
[312621890,1706104803509,470.52138002,0.000229,2]
[312621892,1706104804954,4169.77513846,0.00017175,2]
[312621893,1706104805397,1018.94191937,0.000229,2]
[312621894,1706104805685,155.85792106,0.0002,2]
[312621895,1706104806355,190.10040705,0.000229,2]
[312621896,1706104806722,494.94273303,0.00022767,2]
[312621897,1706104809996,5298.35048365,0.000229,2]
[312621898,1706104810438,888.16498969,0.000229,2]
[312621899,1706104810481,157.45099346,0.000229,2]
[312621900,1706104810608,155.21349549,0.00020697,2]
[312621901,1706104810643,291.48413995,0.000229,2]
[312621902,1706104813994,376.36014815,0.000229,2]